fUSD/lending_fUSD_20250724
["ID","MTS","AMOUNT","RATE_DAILY","PERIOD"]
[374595287,1753368635928,-563.0,0.00030559,2]
[374595288,1753368635938,-2018.0,0.00030559,2]
[374595289,1753368635947,-1269.0,0.00030559,2]
[374595290,1753368635959,-959.0,0.00030559,2]
[374595291,1753368635970,-1686.0,0.00030559,2]
[374595292,1753368635981,-596.0,0.00030559,2]
[374595293,1753368635991,-1285.0,0.00030559,2]
[374595294,1753368636002,-1282.262,0.00030559,2]
[374595295,1753368636012,-21379.0,0.00030559,2]
[374595296,1753368636023,-4129.0,0.00030559,2]
[374595297,1753368636033,-15030.8873532,0.00030563,3]
[374595298,1753368636043,-189.70939199,0.00030573,5]
[374595299,1753368636057,-500.0,0.00030573,5]
[374595300,1753368636067,-500.0,0.00030573,5]
[374595301,1753368636077,-500.0,0.00030573,5]
[374595302,1753368636088,-500.0,0.00030573,5]
[374595303,1753368636099,-500.0,0.00030573,5]
[374595304,1753368636109,-500.0,0.00030573,5]
[374595305,1753368636120,-500.0,0.00030573,5]
[374595306,1753368636130,-500.0,0.00030573,5]
[374595307,1753368636141,-450.97809846,0.00030573,5]
[374595308,1753368636151,-500.0,0.00030573,5]
[374595309,1753368636161,-500.0,0.00030573,5]
[374595310,1753368636172,-500.0,0.00030573,5]
[374595311,1753368636181,-500.0,0.00030573,5]
[374595312,1753368636191,-155.32,0.00030581,2]
[374595313,1753368636201,-437.5,0.000307,3]
[374595314,1753368636211,-1497.16378144,0.00030866,23]
[374595315,1753368636221,-9770.77851241,0.00030952,2]
[374595316,1753368636230,-508.0,0.00030955,2]
[374595317,1753368636241,-211.01152796,0.00031,3]
[374595318,1753368636251,-150.0,0.00031002,2]
[374595319,1753368636260,-500.0,0.0003109,120]
[374595320,1753368636271,-500.0,0.0003109,120]
[374595321,1753368636282,-628.32,0.000311,2]
[374595322,1753368636292,-812.57,0.000311,2]
[374595323,1753368636305,-203.14,0.000311,2]
[374595324,1753368636318,-363.63,0.000311,2]
[374595325,1753368636328,-507.77262756,0.00031121,5]
[374595326,1753368636338,-500.0,0.00031121,5]
[374595327,1753368636348,-501.52411017,0.00031121,5]
[374595328,1753368636358,-500.0,0.00031121,5]
[374595329,1753368636367,-1000.0,0.00031121,5]
[374595330,1753368636377,-500.0,0.00031121,5]
[374595331,1753368636386,-500.0,0.00031121,5]
[374595332,1753368636396,-1000.0,0.00031121,5]
[374595333,1753368636406,-151.62491514,0.00031157,2]
[374595334,1753368636415,-3000.0,0.00031164,7]
[374595335,1753368636425,-3000.0,0.00031164,7]
[374595336,1753368636435,-1900.0,0.00031164,7]
[374595337,1753368636445,-1497.16378144,0.00031314,24]
[374595338,1753368636455,-5772.04510236,0.00031319,2]
[374595339,1753368636466,-9770.77851241,0.00031446,2]
[374595340,1753368636476,-154.0,0.0003147,3]
[374595341,1753368636487,-150.0,0.00031488,7]
[374595342,1753368636497,-150.0,0.00031488,7]
[374595343,1753368636506,-150.0,0.00031488,7]
[374595344,1753368636516,-150.0,0.00031488,7]
[374595345,1753368636526,-150.0,0.00031488,7]
[374595346,1753368636536,-150.0,0.00031488,7]
[374595347,1753368636546,-612.50964953,0.00031553,25]
[374595348,1753368636560,-504.22,0.00031699,2]
[374595349,1753368636570,-300.0,0.000317,5]
[374595350,1753368636580,-150.0,0.00031723,2]
[374595351,1753368636592,-1497.16378144,0.00031762,25]
[374595352,1753368636602,-15030.8873532,0.00031876,3]
[374595353,1753368636612,-9770.77851241,0.00031939,2]
[374595354,1753368636622,-1444.0,0.00031945,120]
[374595355,1753368636631,-3000.0,0.00031986,7]
[374595356,1753368636642,-3000.0,0.00031986,7]
[374595357,1753368636651,-151.0,0.00032,7]
[374595358,1753368636662,-160.0,0.00032,3]
[374595359,1753368636671,-151.62491514,0.00032057,2]
[374595360,1753368636681,-2000.0,0.000321,2]
[374595361,1753368636690,-508.0,0.00032117,4]
[374595362,1753368636700,-1497.16378144,0.0003221,26]
[374595363,1753368636711,-500.0,0.00032233,5]
[374595364,1753368636720,-500.0,0.00032233,5]
[374595365,1753368636730,-5772.04510236,0.00032237,2]
[374595366,1753368636739,-9770.77851241,0.00032433,2]
[374595367,1753368636749,-150.0,0.00032444,2]
[374595368,1753368636758,-15030.8873532,0.00032636,3]
[374595369,1753368636768,-151.0,0.0003265,3]
[374595370,1753368636778,-1497.16378144,0.00032659,27]
[374595371,1753368636787,-1000.0,0.00032668,2]
[374595372,1753368636797,-328.0,0.000327,7]
[374595373,1753368636809,-300.0,0.000327,7]
[374595374,1753368636819,-500.0,0.00032781,5]
[374595375,1753368636828,-1000.0,0.00032789,2]
[374595376,1753368636838,-3000.0,0.00032808,7]
[374595377,1753368636848,-3000.0,0.00032808,7]
[374595378,1753368636858,-1900.0,0.00032808,7]
[374595379,1753368636868,-18254.54680149,0.00032866,3]
[374595381,1753368638596,-41869.00261131,0.00032866,3]
[374595382,1753368638606,-944.8,0.00032866,2]
[374595383,1753368638617,-500.0,0.00032873,5]
[374595384,1753368638626,-500.0,0.00032873,5]
[374595385,1753368638636,-500.0,0.00032873,5]
[374595386,1753368638646,-500.0,0.00032873,5]
[374595387,1753368638656,-500.0,0.00032873,5]
[374595388,1753368638667,-500.0,0.00032873,5]
[374595389,1753368638678,-500.0,0.00032873,5]
[374595390,1753368638689,-500.0,0.00032876,120]
[374595392,1753368638698,-500.0,0.00032876,120]
[374595394,1753368638708,-500.0,0.00032876,120]
[374595396,1753368638718,-500.0,0.00032876,30]
[374595398,1753368638727,-500.0,0.00032876,2]
[374595400,1753368638737,-500.0,0.00032876,2]
[374595401,1753368638747,-500.0,0.00032876,2]
[374595403,1753368638757,-500.0,0.00032876,2]
[374595404,1753368638766,-500.0,0.00032876,120]
[374595407,1753368638777,-500.0,0.00032876,120]
[374595408,1753368638786,-600.0,0.00032876,120]
[374595411,1753368638797,-500.0,0.00032876,2]
[374595412,1753368638809,-500.0,0.00032876,2]
[374595414,1753368638818,-500.0,0.00032876,2]
[374595416,1753368638827,-500.0,0.00032876,2]
[374595418,1753368638837,-500.0,0.00032876,2]
[374595420,1753368638847,-500.0,0.00032876,2]
[374595422,1753368638856,-207.83316326,0.00032876,2]
[374595424,1753368638865,-500.0,0.00032876,120]
[374595426,1753368638876,-500.0,0.00032876,120]
[374595428,1753368638890,-500.0,0.00032876,120]
[374595430,1753368638901,-500.0,0.00032876,120]
[374595432,1753368638910,-604.08,0.00032876,120]
[374595434,1753368638919,-112.88852917,0.00032876,2]
[374595436,1753368638932,-287.11147083,0.00032876,2]
[374595438,1753368638942,-322.63248365,0.00032876,2]
[374595442,1753368638967,-802.56,0.0002387,2]
[374595444,1753368638978,-77.36751635,0.00032876,2]
[374595446,1753368638988,-160.0,0.00032876,2]
[374595448,1753368638998,-400.0,0.00032876,2]
[374595450,1753368639008,-400.0,0.00032876,2]
[374595452,1753368639018,-400.0,0.00032876,2]
[374595454,1753368639028,-400.0,0.00032876,2]
[374595456,1753368639038,-400.0,0.00032876,2]
[374595458,1753368639047,-400.0,0.00032876,2]
[374595460,1753368639058,-400.0,0.00032876,2]
[374595462,1753368639068,-400.0,0.00032876,2]
[374595464,1753368639077,-400.0,0.00032876,2]
[374595466,1753368639088,-400.0,0.00032876,2]
[374595468,1753368639098,-400.0,0.00032876,2]
[374595470,1753368639108,-400.0,0.00032876,2]
[374595472,1753368639117,-400.0,0.00032876,2]
[374595474,1753368639127,-223.97182527,0.00032876,2]
[374595476,1753368639139,-176.02817473,0.00032876,2]
[374595478,1753368639148,-400.0,0.00032876,2]
[374595480,1753368639158,-400.0,0.00032876,2]
[374595482,1753368639167,-400.0,0.00032876,2]
[374595484,1753368639177,-400.0,0.00032876,2]
[374595486,1753368639186,-400.0,0.00032876,2]
[374595488,1753368639195,-400.0,0.00032876,2]
[374595490,1753368639205,-400.0,0.00032876,2]
[374595492,1753368639214,-400.0,0.00032876,2]
[374595494,1753368639225,-294.7,0.00032876,2]
[374595496,1753368639234,-500.0,0.00032876,120]
[374595498,1753368639244,-500.0,0.00032876,120]
[374595500,1753368639253,-500.0,0.00032876,120]
[374595502,1753368639262,-500.0,0.00032876,120]
[374595504,1753368639271,-500.0,0.00032876,120]
[374595506,1753368639281,-500.0,0.00032876,120]
[374595508,1753368639290,-500.0,0.00032876,120]
[374595510,1753368639300,-500.0,0.00032876,120]
[374595511,1753368639312,-500.0,0.00032876,120]
[374595513,1753368639322,-227.52909789,0.00032876,120]
[374595515,1753368639331,-500.0,0.00032876,120]
[374595517,1753368639340,-500.0,0.00032876,120]
[374595519,1753368639350,-237.77,0.00032876,120]
[374595521,1753368639359,-500.0,0.00032876,120]
[374595523,1753368639370,-10000.0,0.00032876,2]
[374595525,1753368639379,-10000.0,0.00032876,2]
[374595527,1753368639392,-10000.0,0.00032876,2]
[374595530,1753368639402,-4078.77252964,0.00032876,2]
[374595532,1753368639414,-5921.22747036,0.00032876,2]
[374595534,1753368639425,-10000.0,0.00032876,2]
[374595536,1753368639438,-10000.0,0.00032876,2]
[374595538,1753368639447,-10000.0,0.00032876,2]
[374595540,1753368639457,-10000.0,0.00032876,2]
[374595542,1753368639467,-10000.0,0.00032876,2]
[374595544,1753368639476,-200.0,0.00032876,2]
[374595546,1753368639486,-500.0,0.00032876,120]
[374595548,1753368639495,-500.0,0.00032876,120]
[374595550,1753368639505,-505.73764633,0.00032876,120]
[374595552,1753368639517,-500.0,0.00032876,2]
[374595554,1753368639526,-500.0,0.00032876,2]
[374595556,1753368639536,-500.0,0.00032876,2]
[374595558,1753368639545,-500.0,0.00032876,2]
[374595560,1753368639558,-500.0,0.00032876,2]
[374595562,1753368639567,-500.0,0.00032876,2]
[374595564,1753368639576,-500.0,0.00032876,120]
[374595566,1753368639586,-260.0,0.00032876,120]
[374595568,1753368639595,-500.0,0.00032876,30]
[374595570,1753368639604,-500.0,0.00032876,30]
[374595572,1753368639614,-1000.0,0.00032876,2]
[374595574,1753368639623,-1000.0,0.00032876,2]
[374595576,1753368639632,-1000.0,0.00032876,2]
[374595578,1753368639642,-791.5493688,0.00032876,2]
[374595698,1753368640793,-263.5,0.00023797,2]
[374595701,1753368640806,-263.5,0.00025291,7]
[374595704,1753368640815,-263.5,0.00026785,7]
[374595707,1753368640825,-263.5,0.00028278,30]
[374595710,1753368640835,-235.4,0.0002963,2]
[374595712,1753368640844,-263.5,0.00029772,30]
[374595714,1753368640854,-263.5,0.00031266,30]
[374595716,1753368640864,-263.5,0.00032759,30]
[374595718,1753368640874,-600.0,0.0003279,2]
[374595720,1753368640885,-242.29,0.0003279,2]
[374595723,1753368640896,-208.4506312,0.00032876,2]
[374595725,1753368640908,-1000.0,0.00032876,2]
[374595726,1753368640917,-1000.0,0.00032876,2]
[374595728,1753368640928,-1000.0,0.00032876,2]
[374595730,1753368640937,-1000.0,0.00032876,2]
[374595732,1753368640947,-1000.0,0.00032876,2]
[374595734,1753368640957,-1000.0,0.00032876,2]
[374595737,1753368640969,-1000.0,0.00032876,2]
[374595739,1753368640978,-1000.0,0.00032876,2]
[374595741,1753368640989,-1000.0,0.00032876,2]
[374595743,1753368640998,-1000.0,0.00032876,2]
[374595745,1753368641007,-1000.0,0.00032876,2]
[374595746,1753368641017,-1000.0,0.00032876,2]
[374595749,1753368641031,-581.51,0.00032876,2]
[374595751,1753368641042,-839.91269601,0.00032877,7]
[374595753,1753368641053,-600.0,0.00032912,2]
[374595755,1753368641063,-242.29,0.00032912,2]
[374595757,1753368641073,-545.79,0.00032921,41]
[374595759,1753368641084,-9770.77851241,0.00032926,2]
[374595761,1753368641094,-151.62491514,0.00032958,2]
[374595763,1753368641104,-1000.0,0.00032981,2]
[374595766,1753368641114,-543.45,0.00032985,31]
[374595768,1753368641124,-1000.0,0.00033,2]
[374595770,1753368641134,-15030.8873532,0.00033011,3]
[374595772,1753368641143,-545.79661811,0.00033021,89]
[374595774,1753368641153,-600.0,0.00033034,2]
[374595776,1753368641163,-242.29,0.00033034,2]
[374595778,1753368641173,-168.0,0.00033043,2]
[374595780,1753368641183,-543.45,0.00033085,50]
[374595782,1753368641192,-1497.16378144,0.00033107,28]
[374595784,1753368641204,-155.32,0.00033129,2]
[374595786,1753368641214,-235.4,0.00033136,2]
[374595788,1753368641224,-5772.04510236,0.00033156,2]
[374595790,1753368641234,-150.0,0.00033165,2]
[374595792,1753368641244,-543.45,0.00033185,86]
[374595794,1753368641253,-600.0,0.00033222,2]
[374595796,1753368641264,-150.0,0.00033237,7]
[374595798,1753368641274,-508.0,0.00033279,6]
[374595801,1753368641286,-543.45,0.00033285,57]
[374595803,1753368641297,-272.57523,0.00033313,120]
[374595805,1753368641309,-168.0,0.0003335,120]
[374595806,1753368641319,-1089.22,0.00033371,120]
[374595809,1753368641329,-183.95516013,0.00033385,65]
[374595811,1753368641342,-359.49483987,0.00033385,65]
[374595813,1753368641352,-684.50516013,0.00033391,2]
[374595816,1753368641368,-606.4717904,0.00033391,2]
[374595818,1753368641381,-110.51304947,0.00033391,2]
[374595820,1753368641391,-875.77595053,0.00033396,3]
[374595825,1753368641433,-400.3019134,0.00033396,3]
[374595830,1753368641472,-13754.80948927,0.00033396,3]
[374595832,1753368641482,-2114.0,0.00033417,2]
[374595833,1753368641500,-162.69792728,0.00033421,5]
[374595842,1753368641711,-9770.77851241,0.0003342,2]
[374595844,1753368641722,-337.30207272,0.00033421,5]
[374595846,1753368641732,-500.0,0.00033421,5]
[374595848,1753368641742,-500.0,0.00033421,5]
[374595850,1753368641753,-501.60948311,0.00033421,5]
[374595852,1753368641762,-500.0,0.00033421,5]
[374595854,1753368641772,-13864.272423,0.00033429,3]
[374595856,1753368641782,-504.22,0.00033429,2]
[374595859,1753368641791,-226.0,0.0003346,2]
[374595861,1753368641802,-543.45,0.00033485,41]
[374595863,1753368641812,-168.0,0.00033487,2]
[374595865,1753368641822,-15030.8873532,0.00033549,3]
[374595867,1753368641831,-13864.272423,0.00033549,3]
[374595869,1753368641842,-2114.0,0.00033553,2]
[374595871,1753368641852,-1497.16378144,0.00033555,29]
[374595873,1753368641861,-3354.0,0.00033559,2]
[374595875,1753368641871,-953.0,0.00033559,2]
[374595877,1753368641881,-807.0,0.00033559,2]
[374595879,1753368641894,-545.22,0.00033559,2]
[374595881,1753368641904,-1252.573,0.00033559,2]
[374595883,1753368641913,-1269.0,0.00033559,2]
[374595885,1753368641923,-959.0,0.00033559,2]
[374595887,1753368641934,-21379.0,0.00033559,2]
[374595889,1753368641943,-4129.0,0.00033559,2]
[374595891,1753368641954,-543.51347012,0.00033585,82]
[374595893,1753368641963,-3000.0,0.0003363,7]
[374595895,1753368641974,-3000.0,0.0003363,7]
[374595897,1753368641983,-15030.8873532,0.00033688,3]
[374595899,1753368641992,-13864.272423,0.00033688,3]
[374595901,1753368642003,-168.0,0.00033689,2]
[374595902,1753368642012,-1000.0,0.00033698,120]
[374595903,1753368642022,-1000.0,0.00033698,120]
[374595904,1753368642032,-1000.0,0.00033698,120]
[374595905,1753368642042,-1000.0,0.00033698,120]
[374595906,1753368642053,-1000.0,0.00033698,120]
[374595907,1753368642063,-1000.0,0.00033698,120]
[374595908,1753368642073,-1000.0,0.00033698,120]
[374595909,1753368642083,-1000.0,0.00033698,120]
[374595910,1753368642093,-1000.0,0.00033698,120]
[374595911,1753368642103,-1000.0,0.00033698,120]
[374595912,1753368642113,-1000.0,0.00033698,120]
[374595913,1753368642123,-1000.0,0.00033698,120]
[374595914,1753368642132,-1000.0,0.00033698,120]
[374595915,1753368642141,-1000.0,0.00033698,120]
[374595916,1753368642151,-1000.0,0.00033698,120]
[374595917,1753368642160,-1000.0,0.00033698,120]
[374595918,1753368642171,-1000.0,0.00033698,120]
[374595919,1753368642181,-1000.0,0.00033698,120]
[374595920,1753368642191,-1000.0,0.00033698,120]
[374595921,1753368642201,-258.95,0.00033698,120]
[374595922,1753368642210,-461.4,0.00033699,120]
[374595923,1753368642219,-300.0,0.000337,8]
[374595924,1753368642229,-300.0,0.000337,8]
[374595925,1753368642238,-2479.69,0.000337,7]
[374595926,1753368642248,-800.0,0.000337,12]
[374595927,1753368642258,-168.0,0.00033701,2]
[374595928,1753368642267,-284.92330971,0.00033715,2]
[374595929,1753368642277,-160.55792226,0.00033753,2]
[374595930,1753368642286,-1860.0,0.00033775,2]
[374595931,1753368642296,-15030.8873532,0.00033776,3]
[374595932,1753368642308,-13864.272423,0.00033776,3]
[374595933,1753368642318,-4721.30704882,0.000338,30]
[374595935,1753368642328,-1600.0,0.000338,12]
[374595937,1753368642338,-1098.0,0.000338,7]
[374595939,1753368642347,-151.0,0.000338,7]
[374595941,1753368642357,-151.0,0.000338,7]
[374595943,1753368642367,-168.0,0.00033821,2]
[374595944,1753368642376,-168.0,0.0003383,2]
[374595945,1753368642386,-790.8542972,0.0003383,120]
[374595946,1753368642396,-150.0,0.0003384,3]
[374595947,1753368642406,-151.62491514,0.00033859,2]
[374595948,1753368642416,-2114.0,0.00033871,120]
[374595949,1753368642426,-150.0,0.00033886,2]
[374595950,1753368642435,-157.37046024,0.00033888,6]
[374595951,1753368642445,-2500.0,0.000339,12]
[374595952,1753368642456,-242.77957875,0.00033903,2]
[374595953,1753368642466,-1805.619241,0.00033949,30]
[374595954,1753368642476,-15030.8873532,0.00033968,3]
[374595955,1753368642486,-27728.5448461,0.00033968,3]
[374595956,1753368642495,-500.39405113,0.00033973,5]
[374595957,1753368642507,-507.38970663,0.00033973,5]
[374595958,1753368642516,-15030.8873532,0.00033978,3]
[374595959,1753368642526,-151.0,0.00033978,7]
[374595960,1753368642536,-219.78535,0.00033978,7]
[374595961,1753368642547,-151.0,0.00033978,7]
[374595962,1753368642559,-152.689903,0.00033978,7]
[374595963,1753368642569,-151.0,0.00033978,7]
[374595964,1753368642579,-151.0,0.00033978,7]
[374595965,1753368642590,-151.0,0.00033978,7]
[374595966,1753368642600,-151.0,0.00033978,7]
[374595967,1753368642610,-743.393678,0.00033978,7]
[374595968,1753368642620,-743.393678,0.00033978,7]
[374595969,1753368642630,-151.0,0.00033978,7]
[374595970,1753368642640,-151.0,0.00033978,7]
[374595971,1753368642650,-30061.7747064,0.00033978,3]
[374595972,1753368642660,-27728.5448461,0.00033978,3]
[374595973,1753368642669,-500.0,0.00033988,120]
[374595974,1753368642679,-500.0,0.00033988,120]
[374595975,1753368642688,-500.0,0.00033988,120]
[374595976,1753368642698,-500.0,0.00033988,120]
[374595977,1753368642707,-500.0,0.00033988,120]
[374595978,1753368642717,-500.0,0.00033988,120]
[374595979,1753368642727,-500.0,0.00033988,120]
[374595980,1753368642737,-500.0,0.00033988,120]
[374595981,1753368642746,-500.0,0.00033988,120]
[374595982,1753368642756,-250.36,0.00033988,120]
[374595983,1753368642765,-151.0,0.00033988,7]
[374595984,1753368642775,-151.0,0.00033988,7]
[374595985,1753368642784,-151.0,0.00033988,7]
[374595986,1753368642794,-151.790678,0.00033988,7]
[374595987,1753368642805,-151.0,0.00033988,7]
[374595988,1753368642816,-151.0,0.00033988,7]
[374595989,1753368642826,-151.0,0.00033988,7]
[374595990,1753368642836,-151.0,0.00033988,7]
[374595991,1753368642846,-285.24,0.00033988,7]
[374595992,1753368642855,-60123.5494128,0.00033988,3]
[374595993,1753368642865,-69321.3621151,0.00033988,3]
[374595994,1753368642875,-202.96181845,0.00033988,2]
[374595995,1753368642886,-15030.8873532,0.0003399,3]
[374595996,1753368642896,-131978.9533058,0.00033998,2]
[374595997,1753368642906,-151.0,0.00033998,7]
[374595998,1753368642916,-151.0,0.00033998,7]
[374595999,1753368642928,-151.0,0.00033998,7]
[374596000,1753368642938,-743.393678,0.00033998,7]
[374596001,1753368642948,-743.393678,0.00033998,7]
[374596002,1753368642957,-151.0,0.00033998,7]
[374596003,1753368642968,-151.0,0.00033998,7]
[374596004,1753368642978,-500.0,0.00033999,2]
[374596005,1753368642988,-500.0,0.00033999,2]
[374596006,1753368642999,-403.89360153,0.00033999,2]
[374596007,1753368643010,-500.0,0.00033999,120]
[374596008,1753368643019,-500.0,0.00033999,120]
[374596009,1753368643029,-562.15750113,0.00033999,120]
[374596010,1753368643039,-151.0,0.00034,7]
[374596011,1753368643050,-1000.0,0.00034,120]
[374596012,1753368643061,-628.32,0.00034,2]
[374596013,1753368643071,-1000.0,0.00034,120]
[374596014,1753368643080,-812.57,0.00034,2]
[374596015,1753368643090,-889.5082292,0.00034,35]
[374596016,1753368643100,-203.14,0.00034,2]
[374596018,1753368643110,-363.63,0.00034,2]
[374596020,1753368643120,-158.95309947,0.00034,2]
[374596022,1753368643129,-1497.16378144,0.00034003,30]
[374596023,1753368643139,-5772.04510236,0.00034074,2]
[374596024,1753368643149,-1860.0,0.00034124,2]
[374596025,1753368643158,-13864.272423,0.00034124,3]
[374596026,1753368643167,-151.0,0.00034134,7]
[374596027,1753368643177,-272.314298,0.00034134,7]
[374596028,1753368643187,-151.0,0.00034134,7]
[374596029,1753368643197,-2114.0,0.00034144,2]
[374596030,1753368643206,-168.0,0.00034153,2]
[374596031,1753368643215,-226.0,0.0003423,2]
[374596032,1753368643226,-15030.8873532,0.00034243,3]
[374596033,1753368643235,-1256.95,0.00034253,30]
[374596034,1753368643245,-1256.95,0.00034253,30]
[374596035,1753368643254,-1256.95,0.00034253,30]
[374596036,1753368643263,-1256.95,0.00034253,30]
[374596037,1753368643273,-263.5,0.00034253,30]
[374596038,1753368643282,-150.0,0.00034278,2]
[374596039,1753368643292,-13864.272423,0.00034351,3]
[374596040,1753368643304,-151.0,0.0003436,7]
[374596041,1753368643314,-7161.3058,0.0003437,2]
[374596042,1753368643324,-150.0,0.00034393,2]
[374596043,1753368643334,-14642.0,0.00034438,2]
[374596044,1753368643344,-508.0,0.0003444,8]
[374596045,1753368643354,-13864.272423,0.00034442,3]
[374596046,1753368643363,-69321.3621151,0.00034445,3]
[374596047,1753368643373,-1000.0,0.00034449,2]
[374596048,1753368643382,-151.0,0.0003445,7]
[374596049,1753368643392,-151.0,0.0003445,7]
[374596050,1753368643402,-151.733305,0.0003445,7]
[374596051,1753368643412,-13864.272423,0.0003445,3]
[374596052,1753368643422,-1497.16378144,0.00034452,30]
[374596053,1753368643431,-3000.0,0.00034452,7]
[374596054,1753368643441,-1900.0,0.00034452,7]
[374596055,1753368643451,-150.0,0.00034454,2]
[374596056,1753368643461,-286.595644,0.00034455,7]
[374596057,1753368643470,-151.0,0.00034455,7]
[374596058,1753368643480,-151.0,0.00034455,7]
[374596059,1753368643490,-151.0,0.00034455,7]
[374596060,1753368643500,-743.393678,0.00034455,7]
[374596061,1753368643510,-743.393678,0.00034455,7]
[374596062,1753368643519,-151.0,0.00034455,7]
[374596063,1753368643529,-151.0,0.00034455,7]
[374596064,1753368643539,-7011.21848367,0.0003446,5]
[374596065,1753368643549,-3126.28,0.00034464,2]
[374596066,1753368643561,-151.0,0.00034465,7]
[374596067,1753368643571,-151.0,0.00034465,7]
[374596068,1753368643581,-151.0,0.00034465,7]
[374596069,1753368643591,-151.0,0.00034465,7]
[374596070,1753368643601,-151.0,0.00034465,7]
[374596071,1753368643612,-151.0,0.00034465,7]
[374596072,1753368643623,-151.0,0.00034465,7]
[374596073,1753368643632,-215.317448,0.00034465,7]
[374596074,1753368643642,-215.317448,0.00034465,7]
[374596075,1753368643652,-151.0,0.00034465,7]
[374596076,1753368643662,-151.0,0.00034465,7]
[374596077,1753368643671,-151.0,0.00034465,7]
[374596078,1753368643681,-151.0,0.00034465,7]
[374596079,1753368643691,-151.0,0.00034465,7]
[374596080,1753368643700,-151.0,0.00034465,7]
[374596081,1753368643711,-151.0,0.00034465,7]
[374596082,1753368643721,-151.0,0.00034465,7]
[374596083,1753368643731,-151.0,0.00034465,7]
[374596084,1753368643740,-151.0,0.00034465,7]
[374596085,1753368643750,-207.196132,0.00034465,7]
[374596086,1753368643760,-207.196132,0.00034465,7]
[374596087,1753368643769,-151.0,0.00034465,7]
[374596088,1753368643779,-151.0,0.00034465,7]
[374596089,1753368643789,-151.0,0.00034465,7]
[374596090,1753368643800,-151.0,0.00034465,7]
[374596092,1753368643812,-110914.179384,0.00034465,3]
[374596094,1753368643823,-1860.0,0.00034472,2]
[374596095,1753368643833,-500.0,0.00034473,5]
[374596096,1753368643843,-150.0,0.00034474,15]
[374596097,1753368643853,-151.0,0.00034475,7]
[374596098,1753368643863,-276.635486,0.00034475,2]
[374596099,1753368643873,-151.0,0.00034475,7]
[374596100,1753368643888,-151.0,0.00034475,7]
[374596102,1753368643900,-151.0,0.00034475,7]
[374596104,1753368643910,-151.0,0.00034475,7]
[374596105,1753368643920,-151.0,0.00034475,7]
[374596106,1753368643930,-215.317448,0.00034475,7]
[374596107,1753368643940,-215.317448,0.00034475,7]
[374596108,1753368643949,-151.0,0.00034475,7]
[374596110,1753368643959,-151.0,0.00034475,7]
[374596112,1753368643969,-151.0,0.00034475,7]
[374596114,1753368643978,-914028.14410078,0.00034475,2]
[374596116,1753368643988,-151.0,0.00034475,7]
[374596117,1753368643998,-397.362853,0.00034475,7]
[374596118,1753368644008,-151.0,0.00034475,7]
[374596119,1753368644018,-207.196132,0.00034475,7]
[374596120,1753368644028,-207.196132,0.00034475,7]
[374596121,1753368644038,-151.0,0.00034475,7]
[374596122,1753368644048,-151.0,0.00034475,7]
[374596123,1753368644061,-151.0,0.00034475,7]
[374596124,1753368644071,-151.0,0.00034475,7]
[374596125,1753368644081,-151.0,0.00034475,7]
[374596126,1753368644091,-190.627892,0.00034475,7]
[374596127,1753368644101,-743.393678,0.00034475,7]
[374596128,1753368644111,-743.393678,0.00034475,7]